bitfinex-derivatives/quotes_BTCF0:USTF0_20250106
["timestamp","ask_amount","ask_price","bid_price","bid_amount"]
[1736185212719,0.2346652,101590.0,101570.0,0.3608]
[1736185212935,0.2346692,101580.0,101570.0,0.3608]
[1736185213321,0.049219,101570.0,101560.0,0.4261]
[1736185213518,0.1419466,101570.0,101560.0,0.0653]
[1736185214120,0.1419466,101570.0,101560.0,0.033]
[1736185214422,0.049229,101550.0,101540.0,0.46307624]
[1736185214626,0.2346842,101550.0,101540.0,0.82387624]
[1736185214923,0.5954842,101550.0,101540.0,0.0616]
[1736185215118,0.5954842,101550.0,101540.0,0.0304]
[1736185215319,0.2346842,101550.0,101540.0,0.0304]
[1736185215515,0.1419566,101550.0,101540.0,0.3912]
[1736185216529,0.1429566,101550.0,101540.0,0.3912]
[1736185217023,0.18997171,101550.0,101540.0,0.3912]
[1736185217222,0.18997171,101550.0,101540.0,0.3932]
[1736185217426,0.18997171,101550.0,101540.0,0.425]
[1736185219324,0.050229,101550.0,101540.0,0.425]
[1736185219523,0.18997171,101550.0,101540.0,0.425]
[1736185219926,0.55077171,101550.0,101540.0,0.0642]
[1736185220420,0.55077171,101550.0,101540.0,0.0338]
[1736185220821,0.18997171,101550.0,101540.0,0.0338]
[1736185221026,0.18997171,101550.0,101540.0,0.3946]
[1736185221229,0.18997171,101550.0,101540.0,0.4252]
[1736185223538,0.18997171,101550.0,101540.0,0.474434]
[1736185224131,0.050229,101550.0,101540.0,0.474434]
[1736185224327,0.000329,101550.0,101540.0,0.474434]
[1736185224532,0.20130968,101560.0,101540.0,0.474434]
[1736185224732,0.049226,101560.0,101550.0,0.410029]
[1736185225030,0.18896871,101560.0,101550.0,0.410029]
[1736185225632,0.18896871,101560.0,101550.0,0.3608]
[1736185226544,0.050226,101560.0,101550.0,0.413029]
[1736185226836,0.14122025,101580.0,101560.0,0.049224]
[1736185227043,0.14122025,101580.0,101570.0,0.3608]
[1736185227838,0.00147754,101580.0,101570.0,0.803119]
[1736185228032,0.31307602,101600.0,101580.0,0.04921]
[1736185228227,0.31307602,101600.0,101590.0,0.3608]
[1736185228434,0.17333331,101600.0,101590.0,0.77081]
[1736185228636,0.17333331,101610.0,101600.0,0.049205]
[1736185228934,0.17333331,101610.0,101600.0,0.440705]
[1736185229335,0.31307602,101610.0,101600.0,0.3608]
[1736185229544,0.049205,101600.0,101590.0,0.3608]
[1736185229732,0.32869042,101600.0,101590.0,0.3608]
[1736185229933,0.32869042,101600.0,101570.0,0.4227]
[1736185229934,0.04921,101590.0,101570.0,0.4227]
[1736185230138,0.18895671,101580.0,101570.0,0.4227]
[1736185230633,0.049214,101580.0,101570.0,0.471919]
[1736185231241,0.06941456,101580.0,101570.0,0.503419]
[1736185232437,0.24474787,101580.0,101570.0,0.503419]
[1736185232637,0.22454731,101580.0,101570.0,0.503419]
[1736185233340,0.22454731,101580.0,101570.0,0.4542]
[1736185233548,0.36429002,101580.0,101570.0,0.423]
[1736185233845,0.36629002,101580.0,101570.0,0.423]
[1736185234833,0.22654731,101580.0,101570.0,0.423]
[1736185235144,0.22654731,101580.0,101570.0,0.61196171]
[1736185235532,0.22654731,101580.0,101570.0,0.472219]
[1736185238753,0.36629002,101580.0,101570.0,0.423]
[1736185239050,0.14632697,101580.0,101570.0,0.423]
[1736185239442,0.23943994,101580.0,101570.0,0.0622]
[1736185240143,0.38440464,101580.0,101570.0,0.0622]
[1736185240340,0.74520464,101580.0,101570.0,0.0622]
[1736185240736,0.74520464,101580.0,101560.0,0.3608]
[1736185240737,0.049219,101570.0,101560.0,0.3608]
[1736185241049,0.049224,101560.0,101550.0,0.4585]
[1736185241541,0.14233697,101560.0,101550.0,0.4585]
[1736185242961,0.31567028,101560.0,101550.0,0.4585]
[1736185243650,0.31667028,101560.0,101550.0,0.4625]
[1736185243944,0.31667028,101560.0,101550.0,0.4318]
[1736185246855,0.28815664,101560.0,101550.0,0.4318]
[1736185250947,0.28815664,101560.0,101550.0,0.3668]
[1736185250948,0.39649067,101560.0,101550.0,0.3668]
[1736185251144,0.75729067,101560.0,101550.0,0.006]
[1736185251351,0.049234,101540.0,101530.0,0.4533]
[1736185251558,0.14234697,101540.0,101530.0,0.4533]
[1736185252758,0.14334697,101540.0,101530.0,0.4573]
[1736185252956,0.50414697,101540.0,101530.0,0.004]
[1736185253156,0.64896664,101540.0,101530.0,0.004]
[1736185254155,0.64796664,101540.0,101520.0,0.3608]
[1736185254367,0.55585367,101540.0,101530.0,0.004]
[1736185254660,0.411034,101540.0,101530.0,0.004]
[1736185255456,0.50414697,101540.0,101530.0,0.004]
[1736185256049,0.52370341,101540.0,101520.0,0.3608]
[1736185256259,0.10423263,101530.0,101520.0,0.3608]
[1736185256462,0.09311297,101530.0,101520.0,0.3608]
[1736185256850,0.26677731,101530.0,101520.0,0.3608]
[1736185257354,0.26777731,101530.0,101520.0,0.3608]
[1736185257546,0.17466434,101530.0,101520.0,0.410043]
[1736185257848,0.02496434,101530.0,101520.0,0.68315597]
[1736185258054,0.09311297,101560.0,101540.0,0.098459]
[1736185258361,0.23491974,101560.0,101550.0,0.86394097]
[1736185258853,0.03531974,101560.0,101550.0,0.86394097]
[1736185259051,0.29250074,101570.0,101560.0,0.049224]
[1736185259252,0.29250074,101570.0,101560.0,0.410024]
[1736185259661,0.38561371,101570.0,101560.0,0.410024]
[1736185260064,0.29726285,101580.0,101560.0,0.410024]
[1736185260363,0.29726285,101580.0,101570.0,0.410019]
[1736185260660,0.20414988,101580.0,101570.0,0.410019]
[1736185261062,0.00147783,101580.0,101570.0,0.410019]
[1736185261361,0.00147783,101580.0,101570.0,0.50313197]
[1736185261557,0.0307,101600.0,101580.0,0.049212]
[1736185261862,0.0307,101600.0,101590.0,0.7216]
[1736185262060,0.29578502,101620.0,101600.0,0.049204]
[1736185262264,0.31519484,101620.0,101610.0,0.3608]
[1736185262563,0.11252279,101620.0,101610.0,0.3608]
[1736185262964,0.15896241,101620.0,101610.0,0.3608]
[1736185263162,0.07760482,101620.0,101610.0,0.3608]
[1736185263361,0.058195,101620.0,101610.0,0.7708]
[1736185263659,0.067195,101620.0,101610.0,0.7708]
[1736185263864,0.0492,101610.0,101600.0,0.410003]
[1736185264162,0.049205,101600.0,101590.0,0.3608]
[1736185264554,0.049205,101600.0,101590.0,0.41001]
[1736185264861,0.18875759,101600.0,101590.0,0.3608]
[1736185265257,0.049205,101600.0,101590.0,0.3608]
[1736185266166,0.049205,101600.0,101590.0,0.3628]
[1736185266463,0.18875759,101600.0,101590.0,0.3628]
[1736185266660,0.58295759,101600.0,101580.0,0.3608]
[1736185266855,0.18876259,101590.0,101580.0,0.3608]
[1736185267663,0.04921,101590.0,101580.0,0.3608]
[1736185268361,0.0700404,101590.0,101580.0,0.3608]
[1736185268562,0.20959299,101590.0,101580.0,0.3608]
[1736185268757,0.18876259,101590.0,101580.0,0.3608]
[1736185269266,0.18876259,101590.0,101580.0,0.33002619]
[1736185269765,0.19076259,101590.0,101580.0,0.33002619]
[1736185270060,0.19276259,101590.0,101580.0,0.33002619]
[1736185271565,0.19076259,101590.0,101580.0,0.33002619]
[1736185271862,0.049214,101580.0,101570.0,0.3608]
[1736185272071,0.20903567,101580.0,101570.0,0.3608]
[1736185272260,0.049219,101570.0,101560.0,0.410023]
[1736185273970,0.050219,101570.0,101560.0,0.410023]
[1736185274266,0.4842178,101570.0,101560.0,0.410023]
[1736185274965,0.4842178,101570.0,101560.0,0.412023]
[1736185275372,0.4349988,101570.0,101560.0,0.55157559]
[1736185276178,0.001,101570.0,101560.0,0.55157559]
[1736185276469,0.14465646,101580.0,101570.0,0.049219]
[1736185276659,0.14465646,101580.0,101570.0,0.54957159]
[1736185276967,0.4339988,101610.0,101590.0,0.049207]
[1736185277170,0.4339988,101610.0,101600.0,0.3608]
[1736185277463,0.57355139,101610.0,101600.0,0.3608]
[1736185277865,0.13955259,101610.0,101600.0,0.3608]
[1736185278066,0.01962569,101610.0,101600.0,0.3608]
[1736185278266,0.4327263,101620.0,101600.0,0.3608]
[1736185278570,0.29317371,101620.0,101610.0,0.3608]
[1736185279163,0.002,101610.0,101600.0,0.3608]
[1736185279457,0.0532,101610.0,101600.0,0.3608]
[1736185279769,0.19275259,101610.0,101600.0,0.3608]
[1736185280672,0.0532,101610.0,101600.0,0.3608]
[1736185280861,0.0512,101610.0,101600.0,0.3608]
[1736185281062,0.19075259,101610.0,101600.0,0.3608]
[1736185281263,0.049215,101580.0,101570.0,0.410018]
[1736185281457,0.18876759,101580.0,101570.0,0.3608]
[1736185281765,0.25226759,101580.0,101570.0,0.3608]
[1736185282355,0.112715,101580.0,101570.0,0.3608]
[1736185282569,0.25226759,101580.0,101570.0,0.001]
[1736185282767,0.25326759,101580.0,101570.0,0.004]
[1736185283471,0.25526759,101580.0,101570.0,0.003]
[1736185284368,0.79064392,101580.0,101540.0,0.410033]
[1736185284579,0.79064392,101580.0,101530.0,0.410037]
[1736185284580,0.049234,101540.0,101530.0,0.410037]
[1736185284868,0.049234,101540.0,101530.0,0.3608]
[1736185284869,0.18878659,101540.0,101530.0,0.3608]
[1736185285070,0.22188659,101540.0,101530.0,0.3608]
[1736185285266,0.082334,101540.0,101530.0,0.3608]
[1736185285873,0.22188659,101540.0,101530.0,0.3608]
[1736185286470,0.22188659,101540.0,101530.0,0.3618]
[1736185286675,0.082334,101540.0,101530.0,0.3618]
[1736185287072,0.22188659,101540.0,101530.0,0.3618]
[1736185287572,0.39546292,101540.0,101530.0,0.3618]
[1736185287764,0.39546292,101540.0,101530.0,0.001]
[1736185287982,0.39646292,101540.0,101530.0,0.001]
[1736185288172,0.41548382,101540.0,101530.0,0.001]
[1736185288370,0.41548382,101540.0,101530.0,0.3618]
[1736185288566,0.27593123,101540.0,101530.0,0.3608]
[1736185288765,0.25691033,101540.0,101530.0,0.410039]
[1736185289376,0.39646292,101540.0,101530.0,0.410039]
[1736185289975,0.22288659,101540.0,101530.0,0.410039]
[1736185290981,0.22288659,101540.0,101530.0,0.3608]
[1736185293280,0.083334,101540.0,101530.0,0.410039]
[1736185293483,0.22288659,101540.0,101530.0,0.410039]
[1736185294283,0.58368659,101540.0,101510.0,0.590046]
[1736185294479,0.58368659,101540.0,101520.0,0.049239]
[1736185295082,0.53730388,101540.0,101520.0,0.049239]
[1736185295678,0.09316988,101530.0,101520.0,0.050239]
[1736185296581,0.53830588,101540.0,101520.0,0.099478]
[1736185296789,0.049239,101530.0,101520.0,0.050239]
[1736185296980,0.14240888,101530.0,101520.0,0.050239]
[1736185297571,0.50320888,101530.0,101520.0,0.001]
[1736185298084,0.50420888,101530.0,101520.0,0.002]
[1736185301887,0.52342339,101530.0,101520.0,0.002]
[1736185302084,0.43025351,101530.0,101520.0,0.002]
[1736185302273,0.09316988,101510.0,101500.0,0.329252]
[1736185302587,0.50321788,101510.0,101500.0,0.149252]
[1736185302789,0.53481788,101510.0,101500.0,0.149252]
[1736185303474,0.53581788,101510.0,101500.0,0.149252]
[1736185304090,0.53681788,101510.0,101500.0,0.149252]
[1736185304389,0.53681788,101510.0,101500.0,0.1]
[1736185304890,0.049258,101490.0,101480.0,0.06]
[1736185305084,0.95719776,101490.0,101480.0,0.06]
[1736185306881,0.049268,101470.0,101460.0,0.04703214]
[1736185307086,0.91084423,101470.0,101460.0,0.04703214]
[1736185307490,0.91084423,101470.0,101460.0,0.09630514]
[1736185308185,0.94234423,101470.0,101460.0,0.09630514]
[1736185308593,0.94334423,101470.0,101460.0,0.04703214]
[1736185308785,0.94334423,101470.0,101460.0,0.09630514]
[1736185309779,0.94334423,101470.0,101460.0,0.04703214]
[1736185310186,0.049273,101460.0,101450.0,0.049275]
[1736185310381,0.55004923,101460.0,101440.0,0.01719833]
[1736185310587,0.50077623,101450.0,101440.0,0.04928]
[1736185310886,0.55005323,101450.0,101440.0,0.04928]
[1736185312289,0.55105323,101450.0,101440.0,0.04928]
[1736185313390,0.55205323,101450.0,101440.0,0.04928]
[1736185315195,0.56934404,101450.0,101440.0,0.04928]
[1736185315989,0.56934404,101450.0,101430.0,0.18]
[1736185316185,0.55005823,101440.0,101430.0,0.229287]
[1736185316391,0.55005823,101440.0,101430.0,0.24469488]
[1736185317204,0.50077623,101440.0,101430.0,0.229287]
[1736185317392,0.3618,101440.0,101430.0,0.229287]
[1736185317593,0.50177623,101440.0,101430.0,0.229287]
[1736185318092,0.55205823,101440.0,101430.0,0.24469467]
[1736185318299,0.55205823,101440.0,101430.0,0.229287]
[1736185318694,0.69203446,101440.0,101430.0,0.229287]
[1736185318896,0.55205823,101440.0,101430.0,0.229287]
[1736185319098,0.14197623,101440.0,101430.0,0.229287]
[1736185319300,0.55205823,101440.0,101430.0,0.229287]
[1736185319801,0.69203446,101440.0,101430.0,0.229287]
[1736185320002,0.69203446,101440.0,101430.0,0.049287]
[1736185320203,0.55205823,101440.0,101430.0,0.049287]
[1736185320406,0.69203446,101440.0,101430.0,0.049287]
[1736185320698,0.049287,101430.0,101420.0,0.06704237]
[1736185320898,0.55006323,101430.0,101420.0,0.04929]
[1736185321095,0.58066323,101430.0,101420.0,0.01540969]
[1736185321291,0.64856323,101430.0,101420.0,0.01540969]
[1736185321495,0.64856323,101430.0,101400.0,0.32517388]
[1736185321693,0.55007323,101410.0,101400.0,0.32517388]
[1736185321993,0.55007323,101410.0,101400.0,0.34058622]
[1736185322196,0.55007323,101410.0,101400.0,0.32517388]
[1736185322600,0.50077623,101410.0,101400.0,0.1493]
[1736185322906,0.410093,101420.0,101410.0,0.049297]
[1736185323904,0.55006923,101420.0,101410.0,0.049297]
[1736185324103,0.55006923,101420.0,101400.0,0.1]
[1736185324104,0.049297,101410.0,101400.0,0.1]
[1736185324296,0.55007323,101410.0,101400.0,0.1]
[1736185324494,0.50077623,101410.0,101380.0,0.22518188]
[1736185324702,0.3608,101390.0,101380.0,0.40518188]
[1736185325005,0.3608,101390.0,101380.0,0.44525656]
[1736185325204,0.3608,101390.0,101380.0,0.42059522]
[1736185325910,0.3608,101390.0,101380.0,0.24472134]
[1736185326094,0.3608,101390.0,101380.0,0.06472134]
[1736185326501,0.3608,101390.0,101380.0,0.049308]
[1736185326705,0.3608,101390.0,101380.0,0.229308]
[1736185326892,0.410103,101400.0,101390.0,0.049307]
[1736185327097,0.50351629,101400.0,101390.0,0.049307]
[1736185327802,0.59692958,101400.0,101380.0,0.22931]
[1736185328109,0.51462966,101390.0,101380.0,0.04931]
[1736185328307,0.50352029,101390.0,101380.0,0.04931]
[1736185328607,0.50352029,101390.0,101380.0,0.18]
[1736185329200,0.50352029,101390.0,101370.0,0.049313]
[1736185329408,0.4653586,101380.0,101370.0,0.049313]
[1736185329612,0.45421329,101380.0,101370.0,0.049313]
[1736185330701,0.45521329,101380.0,101370.0,0.049313]
[1736185332011,0.59793758,101380.0,101370.0,0.18]
[1736185332209,0.04932,101370.0,101350.0,0.12500166]
[1736185332412,0.46557219,101360.0,101350.0,0.28519888]
[1736185332607,0.86433429,101360.0,101350.0,0.23587388]
[1736185332908,0.049326,101350.0,101340.0,0.4150546]
[1736185333103,0.61798117,101350.0,101340.0,0.17679923]
[1736185333304,0.59695258,101350.0,101340.0,0.17679923]
[1736185333504,0.62865258,101350.0,101340.0,0.17679923]
[1736185334101,0.049336,101330.0,101320.0,0.35224324]
[1736185334300,0.86434929,101330.0,101320.0,0.35224324]
[1736185334500,0.86434929,101330.0,101310.0,0.049345]
[1736185334702,0.01120829,101320.0,101310.0,0.410145]
[1736185334904,0.3608,101340.0,101330.0,0.049336]
[1736185335219,0.002,101350.0,101340.0,0.049331]
[1736185335508,0.36228045,101380.0,101370.0,0.049316]
[1736185335818,0.55183555,101380.0,101370.0,0.049316]
[1736185336307,0.55183555,101380.0,101350.0,0.081425]
[1736185336308,0.04932,101370.0,101350.0,0.081425]
[1736185336529,0.56143974,101360.0,101350.0,0.081425]
[1736185336702,0.049326,101350.0,101340.0,0.04933]
[1736185336905,0.5503701,101350.0,101340.0,0.04933]
[1736185337313,0.5503701,101350.0,101330.0,0.049335]
[1736185337611,0.37178571,101340.0,101330.0,0.049335]
[1736185337816,0.3608,101340.0,101330.0,0.049335]
[1736185338417,0.3608,101340.0,101330.0,0.1895791]
[1736185338710,0.3608,101340.0,101330.0,0.099135]
[1736185339009,0.3608,101350.0,101330.0,0.2393791]
[1736185339209,0.3608,101350.0,101340.0,0.049331]
[1736185339408,0.3608,101350.0,101340.0,0.050331]
[1736185339605,0.5503701,101350.0,101340.0,0.050331]
[1736185339811,0.5503701,101350.0,101340.0,0.049331]
[1736185340212,0.410126,101350.0,101340.0,0.049331]
[1736185340606,0.410126,101350.0,101340.0,0.050331]
[1736185340806,0.5503701,101350.0,101340.0,0.050331]
[1736185341309,0.410126,101350.0,101340.0,0.050331]
[1736185341504,0.3608,101350.0,101340.0,0.1905751]
[1736185341708,0.3608,101360.0,101350.0,0.049326]
[1736185342108,0.49641616,101370.0,101360.0,0.049321]
[1736185342310,0.63666026,101370.0,101360.0,0.049321]
[1736185342517,0.63666026,101370.0,101340.0,0.0998]
[1736185342713,0.63666026,101370.0,101340.0,0.05033]
[1736185342714,0.1895701,101350.0,101340.0,0.05033]
[1736185342915,0.3608,101350.0,101340.0,0.05033]
[1736185343122,0.3608,101350.0,101340.0,0.04933]
[1736185343305,0.3608,101350.0,101340.0,0.1895741]
[1736185343512,0.3608,101350.0,101340.0,0.04933]
[1736185343811,0.5503671,101360.0,101340.0,0.050327]
[1736185344012,0.37171665,101350.0,101340.0,0.050327]
[1736185344215,0.3608,101360.0,101340.0,0.1412441]
[1736185344410,0.410122,101360.0,101350.0,0.049326]
[1736185344722,0.049326,101350.0,101340.0,0.05033]
[1736185344926,0.5503701,101350.0,101340.0,0.05033]
[1736185345109,0.410116,101370.0,101340.0,0.5513741]
[1736185345419,0.39255073,101360.0,101350.0,0.099026]
[1736185345712,0.3608,101360.0,101350.0,0.06818176]
[1736185346514,0.410121,101360.0,101350.0,0.049326]
[1736185346817,0.414121,101360.0,101350.0,0.049326]
[1736185347317,0.5050441,101360.0,101340.0,0.049329]
[1736185347517,0.410128,101350.0,101340.0,0.049329]
[1736185348207,0.6007721,101350.0,101340.0,0.049329]
[1736185348408,0.6514721,101350.0,101340.0,0.049329]
[1736185349022,0.049332,101340.0,101330.0,0.049333]
[1736185349211,0.410132,101340.0,101330.0,0.049333]
[1736185350521,0.5513761,101340.0,101330.0,0.050333]
[1736185350712,0.5513761,101340.0,101330.0,0.051333]
[1736185351220,0.411132,101340.0,101330.0,0.051333]
[1736185351517,0.5513761,101340.0,101330.0,0.051333]
[1736185351710,0.3618,101340.0,101330.0,0.1915771]
[1736185351910,0.001,101340.0,101330.0,0.5523771]
[1736185352110,0.25889747,101360.0,101350.0,0.049326]
[1736185352314,0.25889747,101360.0,101350.0,0.5503701]
[1736185352712,0.25889747,101360.0,101350.0,0.3695701]
[1736185353018,0.25889747,101360.0,101350.0,0.7303701]
[1736185353214,0.25889747,101360.0,101350.0,0.590126]
[1736185353415,0.26089747,101360.0,101350.0,0.590126]
[1736185353720,0.002,101360.0,101350.0,0.229326]
[1736185353916,0.02196912,101360.0,101350.0,0.229326]
[1736185354111,0.02196912,101360.0,101350.0,0.049326]
[1736185354310,0.38276009,101360.0,101350.0,0.049326]
[1736185354515,0.3648,101360.0,101350.0,0.049326]
[1736185355324,0.3648,101360.0,101350.0,0.1895701]
[1736185355622,0.004,101360.0,101350.0,0.7303701]
[1736185356016,0.3648,101360.0,101350.0,0.049326]
[1736185356610,0.002,101360.0,101350.0,0.1895701]
[1736185356816,0.002,101360.0,101350.0,0.049326]
[1736185357018,0.412121,101360.0,101350.0,0.049326]
[1736185357418,0.462921,101360.0,101350.0,0.049326]
[1736185357615,0.460921,101360.0,101350.0,0.051326]
[1736185357814,0.6011651,101360.0,101350.0,0.051326]
[1736185358429,0.80296265,101360.0,101350.0,0.051326]
[1736185358817,0.66271855,101360.0,101350.0,0.051326]
[1736185359131,0.56259755,101360.0,101350.0,0.1915701]
[1736185360317,0.56259755,101360.0,101350.0,0.051326]
[1736185361027,0.49685301,101360.0,101350.0,0.051326]
[1736185361628,0.68519711,101360.0,101350.0,0.051326]
[1736185362018,0.73569711,101360.0,101350.0,0.051326]
[1736185362419,0.76403064,101360.0,101350.0,0.051326]
[1736185362819,0.62378654,101360.0,101350.0,0.051326]
[1736185363426,0.68229733,101360.0,101350.0,0.051326]
[1736185363623,0.53437633,101360.0,101350.0,0.1915701]
[1736185363824,0.53437633,101360.0,101350.0,0.051326]
[1736185364220,0.53437633,101360.0,101350.0,0.1915701]
[1736185364528,0.14498761,101360.0,101350.0,0.5523701]
[1736185365327,0.17357633,101370.0,101360.0,0.049321]
[1736185365523,3.3e-07,101370.0,101360.0,0.7420092]
[1736185365727,3.3e-07,101370.0,101360.0,1.0420092]
[1736185366033,0.4339988,101390.0,101380.0,0.049311]
[1736185366229,0.17402776,101390.0,101380.0,0.5503551]
[1736185366825,0.17402776,101390.0,101380.0,0.9111551]
[1736185367225,0.20299277,101410.0,101400.0,0.049302]
[1736185367429,0.20299277,101410.0,101400.0,0.1895461]
[1736185367629,0.20299277,101410.0,101400.0,0.3695461]
[1736185367820,0.20253277,101410.0,101400.0,0.7303461]
[1736185368026,0.20253277,101410.0,101400.0,0.7794461]
[1736185368343,0.410093,101420.0,101410.0,0.049297]
[1736185368635,0.049307,101400.0,101390.0,0.049306]
[1736185368832,0.049307,101400.0,101390.0,0.1895501]
[1736185369228,0.461598,101410.0,101400.0,0.049302]
[1736185370425,0.461598,101410.0,101400.0,0.051302]
[1736185370936,0.410098,101410.0,101400.0,0.051302]
[1736185371140,0.5503421,101410.0,101400.0,0.051302]
[1736185371434,0.5503421,101410.0,101400.0,0.002]
[1736185371639,0.5503421,101410.0,101380.0,0.049311]
[1736185371840,0.049314,101380.0,101360.0,0.049317]
[1736185372031,0.7216,101370.0,101360.0,0.049317]
[1736185372640,0.9111601,101370.0,101360.0,0.049317]
[1736185372830,0.818816,101370.0,101360.0,0.049317]
[1736185373035,0.818816,101370.0,101360.0,0.052317]
[1736185373539,0.819816,101370.0,101360.0,0.052317]
[1736185373939,0.9600601,101370.0,101360.0,0.003]
[1736185374231,0.88749228,101370.0,101360.0,0.049321]
[1736185374535,0.771919,101370.0,101360.0,0.049321]
[1736185374732,0.7226,101370.0,101360.0,0.049321]
[1736185374934,0.7236,101370.0,101360.0,0.050321]
[1736185375433,0.9121601,101370.0,101360.0,0.050321]
[1736185375631,0.771916,101370.0,101360.0,0.049321]
[1736185376133,0.770916,101370.0,101360.0,0.049321]
[1736185376334,0.8618441,101370.0,101330.0,0.4680781]
[1736185376529,0.3608,101350.0,101340.0,0.049331]
[1736185377137,0.5010441,101350.0,101340.0,0.049331]
[1736185377333,0.5503701,101350.0,101340.0,0.049331]
[1736185377536,0.5984701,101350.0,101340.0,0.049331]
[1736185377738,0.6460701,101350.0,101340.0,0.049331]
[1736185378047,0.505826,101350.0,101340.0,0.049331]
[1736185378731,0.410126,101350.0,101340.0,0.049331]
[1736185379243,0.3608,101350.0,101340.0,0.049331]
[1736185379633,0.3608,101350.0,101340.0,0.1895751]
[1736185379934,0.3608,101350.0,101340.0,0.2379751]
[1736185380840,0.410123,101360.0,101350.0,0.049326]
[1736185381032,0.66603569,101360.0,101350.0,0.049326]
[1736185381236,0.47646859,101360.0,101350.0,0.049326]
[1736185381541,0.61671269,101360.0,101350.0,0.049326]
[1736185381838,0.66603369,101360.0,101350.0,0.049326]
[1736185382034,0.67103369,101360.0,101350.0,0.049326]
[1736185382236,0.67103369,101360.0,101350.0,0.229326]
[1736185382425,0.48146859,101360.0,101350.0,0.049326]
[1736185382838,0.48146859,101360.0,101350.0,0.229326]
[1736185384142,0.36228023,101380.0,101370.0,0.049316]
[1736185384334,0.20240995,101390.0,101370.0,0.1895601]
[1736185384643,0.20240995,101390.0,101380.0,0.5503551]
[1736185385240,0.410102,101400.0,101390.0,0.049307]
[1736185385552,0.049308,101390.0,101380.0,0.049309]
[1736185385734,0.421108,101390.0,101380.0,0.049309]
[1736185386039,0.469308,101390.0,101380.0,0.049309]
[1736185386439,0.462308,101390.0,101380.0,0.049309]
[1736185386635,0.6025521,101390.0,101380.0,0.049309]
[1736185387339,0.5985521,101390.0,101380.0,0.049309]
[1736185387538,0.5985521,101390.0,101360.0,0.049317]
[1736185387735,0.5503621,101370.0,101360.0,0.049319]
[1736185387931,0.9111621,101370.0,101360.0,0.049319]
[1736185388744,0.770918,101370.0,101360.0,0.053319]
[1736185388945,0.770918,101370.0,101360.0,0.054319]
[1736185389146,0.770918,101370.0,101360.0,0.050319]
[1736185389341,0.770918,101370.0,101360.0,0.052319]
[1736185390050,0.9444726,101370.0,101360.0,0.052319]
[1736185391441,0.7216,101370.0,101360.0,0.052319]
[1736185391639,0.7216,101370.0,101360.0,0.1925631]
[1736185392048,0.770916,101370.0,101360.0,0.232319]
[1736185392235,0.770916,101370.0,101360.0,0.052319]
[1736185393646,0.9111601,101370.0,101360.0,0.052319]
[1736185393847,0.9111601,101370.0,101360.0,0.003]
[1736185394343,0.91115251,101370.0,101360.0,0.003]
[1736185395243,1.08470711,101370.0,101360.0,0.003]
[1736185396339,1.05585573,101370.0,101360.0,0.003]
[1736185397037,1.05785573,101370.0,101360.0,0.002]
[1736185397748,1.05785573,101370.0,101330.0,0.101034]
[1736185397749,0.18956251,101350.0,101330.0,0.101034]
[1736185397954,0.410131,101340.0,101330.0,0.101034]
[1736185399041,0.411131,101340.0,101330.0,0.102034]
[1736185399439,0.001,101340.0,101330.0,0.60307051]
[1736185399846,0.14581651,101340.0,101330.0,0.60607051]
[1736185400339,0.1735546,101350.0,101340.0,0.049331]
[1736185400647,0.1735546,101350.0,101340.0,0.151631]
[1736185400834,0.459446,101360.0,101340.0,0.151631]
[1736185401039,0.410122,101360.0,101350.0,0.049326]
[1736185402249,0.410122,101360.0,101350.0,0.229326]
[1736185404935,0.410122,101360.0,101350.0,0.049326]
[1736185405343,0.410122,101360.0,101350.0,0.229326]
[1736185407339,0.3608,101360.0,101350.0,0.229326]
[1736185407539,0.77729621,101370.0,101360.0,0.049321]
[1736185407850,0.96454161,101370.0,101360.0,0.049321]
[1736185408848,0.96754161,101370.0,101360.0,0.049321]
[1736185409254,1.14170737,101370.0,101360.0,0.049321]
[1736185409648,1.14370737,101370.0,101360.0,0.049321]
[1736185410656,0.049321,101360.0,101350.0,0.229326]
[1736185410848,0.410121,101360.0,101350.0,0.049326]
[1736185411157,0.3608,101360.0,101350.0,0.049326]
[1736185411557,0.53499423,101360.0,101350.0,0.049326]
[1736185412061,0.53499423,101360.0,101350.0,0.050326]
[1736185412553,0.17419423,101370.0,101360.0,0.049321]
[1736185412753,0.17419423,101370.0,101360.0,0.55034561]
[1736185412948,0.17419423,101370.0,101360.0,0.65024561]
[1736185413153,0.17419423,101370.0,101360.0,0.60345147]
[1736185413352,0.6284247,101370.0,101360.0,0.149221]
[1736185413558,0.6777407,101370.0,101360.0,0.049321]
[1736185413967,0.412116,101370.0,101360.0,0.049321]
[1736185414270,0.50854647,101370.0,101360.0,0.049321]
[1736185414567,0.049321,101360.0,101350.0,0.049324]
[1736185414766,0.410121,101360.0,101350.0,0.049324]
[1736185415158,0.049321,101360.0,101350.0,0.049324]
[1736185415769,0.410121,101360.0,101350.0,0.049324]
[1736185416077,0.22351523,101360.0,101350.0,0.14275447]
[1736185416465,0.17419423,101360.0,101350.0,0.14275447]
[1736185416873,0.17419423,101360.0,101350.0,0.68355447]
[1736185417572,0.17419423,101360.0,101350.0,0.68455447]
[1736185417767,0.17419423,101360.0,101350.0,0.230324]
[1736185418073,0.17419423,101360.0,101350.0,0.50455447]
[1736185418279,0.17519423,101360.0,101350.0,0.50455447]
[1736185418577,0.001,101360.0,101350.0,0.68455447]
[1736185418775,0.53499423,101370.0,101350.0,0.68455447]
[1736185419074,0.53499423,101370.0,101360.0,0.14275147]
[1736185419981,0.3608,101370.0,101360.0,0.14275147]
[1736185420578,0.3608,101370.0,101360.0,0.19565147]
[1736185421164,0.53499423,101380.0,101360.0,0.55745147]
[1736185421165,0.17419423,101380.0,101360.0,0.55745147]
[1736185421367,0.17419423,101380.0,101370.0,0.14274647]
[1736185421368,0.53499423,101380.0,101370.0,0.14274647]
[1736185421779,0.53499423,101380.0,101370.0,0.049316]
[1736185422679,0.53499423,101380.0,101370.0,0.14274647]
[1736185422870,0.3608,101380.0,101370.0,0.14274647]
[1736185423070,0.3628,101380.0,101370.0,0.14274647]
[1736185423272,0.3628,101380.0,101370.0,0.049316]
[1736185423681,0.3648,101380.0,101370.0,0.049316]